fUSD/lending_fUSD_20260620
["ID","MTS","AMOUNT","RATE_DAILY","PERIOD"]
[425778275,1781887973000,-906.68,0.0003589,30]
[425778281,1781887974000,-500.0,0.0003589,30]
[425778282,1781887974000,-184.19964038,0.0003589,30]
[425778283,1781887974000,-780.74,0.0003589,30]
[425778284,1781887974000,-594.02,0.0003589,30]
[425778286,1781887974000,-500.0,0.0003589,30]
[425778287,1781887974000,-743.84,0.0003589,30]
[425778288,1781887974000,-500.0,0.0003589,30]
[425778289,1781887974000,-500.0,0.0003589,30]
[425778285,1781887974000,-500.0,0.0003589,30]
[425778294,1781887975000,-577.97,0.0003589,30]
[425778290,1781887975000,-500.0,0.0003589,30]
[425778291,1781887975000,-1013.87,0.0003589,30]
[425778292,1781887975000,-2492.23,0.0003589,30]
[425778293,1781887975000,-500.0,0.0003589,30]
[425778295,1781887975000,-500.0,0.0003589,30]
[425778298,1781887975000,-1109.66,0.0003589,30]
[425778297,1781887975000,-952.89,0.0003589,30]
[425778299,1781887975000,-574.37,0.0003589,30]
[425778301,1781887975000,-2528.15,0.0003589,30]
[425778300,1781887975000,-723.87,0.0003589,30]
[425778302,1781887975000,-500.0,0.0003589,30]
[425778296,1781887975000,-1013.66,0.0003589,30]
[425778309,1781887976000,-722.6,0.0003589,30]
[425778303,1781887976000,-695.27,0.0003589,30]
[425778304,1781887976000,-636.13,0.0003589,30]
[425778305,1781887976000,-1182.85,0.0003589,30]
[425778306,1781887976000,-620.19,0.0003589,30]
[425778307,1781887976000,-500.0,0.0003589,30]
[425778308,1781887976000,-628.07,0.0003589,30]
[425778312,1781887976000,-500.0,0.0003589,30]
[425778311,1781887976000,-662.33,0.0003589,30]
[425778313,1781887976000,-900.24,0.0003589,30]
[425778315,1781887976000,-500.0,0.0003589,30]
[425778314,1781887976000,-500.0,0.0003589,30]
[425778316,1781887976000,-636.4,0.0003589,30]
[425778317,1781887976000,-500.0,0.0003589,30]
[425778318,1781887976000,-662.63,0.0003589,30]
[425778310,1781887976000,-918.47,0.0003589,30]
[425778323,1781887977000,-500.0,0.0003589,30]
[425778322,1781887977000,-2588.84,0.0003589,30]
[425778325,1781887977000,-500.0,0.0003589,30]
[425778320,1781887977000,-643.62,0.0003589,30]
[425778319,1781887977000,-500.0,0.0003589,30]
[425778321,1781887977000,-252.0,0.0003589,30]
[425778324,1781887977000,-161.39982477,0.0003589,30]
[425778334,1781887977000,-649.08,0.0003589,30]
[425778327,1781887977000,-598.87,0.0003589,30]
[425778328,1781887977000,-970.43,0.0003589,30]
[425778329,1781887977000,-658.41,0.0003589,30]
[425778330,1781887977000,-1083.37,0.0003589,30]
[425778331,1781887977000,-500.0,0.0003589,30]
[425778333,1781887977000,-500.0,0.0003589,30]
[425778332,1781887977000,-846.54,0.0003589,30]
[425778326,1781887977000,-947.68,0.0003589,30]
[425778335,1781887978000,-650.2,0.0003589,30]
[425778336,1781887978000,-500.0,0.0003589,30]
[425778337,1781887978000,-500.0,0.0003589,30]
[425778338,1781887978000,-500.0,0.0003589,30]
[425778339,1781887978000,-1487.57,0.0003589,30]
[425778340,1781887978000,-500.0,0.0003589,30]
[425778341,1781887978000,-846.43,0.0003589,30]
[425778342,1781887978000,-585.97,0.0003589,30]
[425778343,1781887978000,-1066.11,0.0003589,30]
[425778344,1781887978000,-1580.21,0.0003589,30]
[425778346,1781887978000,-180.22624655,0.0003589,30]
[425778345,1781887978000,-678.01,0.0003589,30]
[425778347,1781887978000,-697.26,0.0003589,30]
[425778349,1781887978000,-5570.48,0.0003589,30]
[425778348,1781887978000,-209.07,0.0003589,30]
[425778350,1781887978000,-500.0,0.0003589,30]
[425778352,1781887979000,-500.0,0.0003589,30]
[425778351,1781887979000,-500.0,0.0003589,30]
[425778354,1781887979000,-500.0,0.0003589,30]
[425778353,1781887979000,-500.0,0.0003589,30]
[425778355,1781887979000,-500.0,0.0003589,30]
[425778357,1781887979000,-651.01,0.0003589,30]
[425778356,1781887979000,-500.0,0.0003589,30]
[425778366,1781887979000,-860.38,0.0003589,30]
[425778358,1781887979000,-734.22,0.0003589,30]
[425778360,1781887979000,-1473.35,0.0003589,30]
[425778361,1781887979000,-1586.38,0.0003589,30]
[425778362,1781887979000,-755.8,0.0003589,30]
[425778363,1781887979000,-500.0,0.0003589,30]
[425778364,1781887979000,-522.21,0.0003589,30]
[425778365,1781887979000,-500.0,0.0003589,30]
[425778359,1781887979000,-697.49,0.0003589,30]
[425778372,1781887980000,-1064.26,0.0003589,30]
[425778367,1781887980000,-741.41,0.0003589,30]
[425778368,1781887980000,-505.49,0.0003589,30]
[425778369,1781887980000,-500.0,0.0003589,30]
[425778371,1781887980000,-500.0,0.0003589,30]
[425778370,1781887980000,-1437.17,0.0003589,30]
[425778373,1781887980000,-500.35007751,0.0003589,30]
[425778378,1781887980000,-500.0,0.0003589,30]
[425778376,1781887980000,-500.0,0.0003589,30]
[425778375,1781887980000,-500.0,0.0003589,30]
[425778377,1781887980000,-512.48,0.0003589,30]
[425778382,1781887980000,-1376.12,0.0003589,30]
[425778379,1781887980000,-177.82888347,0.0003589,30]
[425778381,1781887980000,-500.0,0.0003589,30]
[425778380,1781887980000,-515.79,0.0003589,30]
[425778374,1781887980000,-500.0,0.0003589,30]
[425778383,1781887981000,-807.08,0.0003589,30]
[425778384,1781887981000,-802.44,0.0003589,30]
[425778385,1781887981000,-999.65,0.0003589,30]
[425778386,1781887981000,-500.0,0.0003589,30]
[425778387,1781887981000,-500.0,0.0003589,30]
[425778388,1781887981000,-612.73,0.0003589,30]
[425778389,1781887981000,-526.37,0.0003589,30]
[425778391,1781887981000,-500.0,0.0003589,30]
[425778393,1781887981000,-500.0,0.0003589,30]
[425778392,1781887981000,-1188.41,0.0003589,30]
[425778394,1781887981000,-710.03,0.0003589,30]
[425778395,1781887981000,-500.0,0.0003589,30]
[425778396,1781887981000,-500.0,0.0003589,30]
[425778397,1781887981000,-1214.29,0.0003589,30]
[425778398,1781887981000,-500.0,0.0003589,30]
[425778390,1781887981000,-500.0,0.0003589,30]
[425778403,1781887982000,-500.0,0.0003589,30]
[425778399,1781887982000,-1458.25,0.0003589,30]
[425778400,1781887982000,-2990.41,0.0003589,30]
[425778401,1781887982000,-500.0,0.0003589,30]
[425778402,1781887982000,-1675.21,0.0003589,30]
[425778405,1781887982000,-607.03,0.0003589,30]
[425778404,1781887982000,-5534.69,0.0003589,30]
[425778406,1781887982000,-500.0,0.0003589,30]
[425778408,1781887982000,-3792.83,0.0003589,30]
[425778407,1781887982000,-500.0,0.0003589,30]
[425778409,1781887982000,-500.0,0.0003589,30]
[425778410,1781887982000,-500.0,0.0003589,30]
[425778411,1781887982000,-565.87,0.0003589,30]
[425778412,1781887983000,-607.04,0.0003589,30]
[425778413,1781887983000,-575.06,0.0003589,30]
[425778415,1781887983000,-500.0,0.0003589,30]
[425778414,1781887983000,-500.0,0.0003589,30]
[425778416,1781887983000,-500.0,0.0003589,30]
[425778418,1781887983000,-559.13,0.0003589,30]
[425778417,1781887983000,-853.91,0.0003589,30]
[425778421,1781887983000,-500.0,0.0003589,30]
[425778420,1781887983000,-500.0,0.0003589,30]
[425778422,1781887983000,-500.0,0.0003589,30]
[425778423,1781887983000,-500.0,0.0003589,30]
[425778424,1781887983000,-3075.0,0.0003589,30]
[425778425,1781887983000,-500.0,0.0003589,30]
[425778426,1781887983000,-876.43,0.0003589,30]
[425778419,1781887983000,-1164.63,0.0003589,30]
[425778433,1781887984000,-1444.74,0.0003589,30]
[425778427,1781887984000,-500.0,0.0003589,30]
[425778428,1781887984000,-4074.72,0.0003589,30]
[425778430,1781887984000,-500.0,0.0003589,30]
[425778429,1781887984000,-500.0,0.0003589,30]
[425778431,1781887984000,-985.23,0.0003589,30]
[425778432,1781887984000,-2092.1,0.0003589,30]
[425778440,1781887984000,-652.73,0.0003589,30]
[425778434,1781887984000,-606.07,0.0003589,30]
[425778436,1781887984000,-500.0,0.0003589,30]
[425778438,1781887984000,-640.19,0.0003589,30]
[425778437,1781887984000,-650.27,0.0003589,30]
[425778439,1781887984000,-1776.22,0.0003589,30]
[425778441,1781887984000,-842.27,0.0003589,30]
[425778435,1781887984000,-1277.26,0.0003589,30]
[425778442,1781887985000,-737.33,0.0003589,30]
[425778443,1781887985000,-205.7207363,0.0003589,30]
[425778444,1781887985000,-500.0,0.0003589,30]
[425778445,1781887985000,-500.0,0.0003589,30]
[425778446,1781887985000,-500.0,0.0003589,30]
[425778447,1781887985000,-500.0,0.0003589,30]
[425778448,1781887985000,-500.0,0.0003589,30]
[425778449,1781887985000,-500.0,0.0003589,30]
[425778451,1781887985000,-553.05,0.0003589,30]
[425778450,1781887985000,-958.15,0.0003589,30]
[425778452,1781887985000,-500.0,0.0003589,30]
[425778453,1781887985000,-500.0,0.0003589,30]
[425778454,1781887985000,-621.71,0.0003589,30]
[425778455,1781887985000,-500.0,0.0003589,30]
[425778457,1781887985000,-537.57,0.0003589,30]
[425778456,1781887985000,-502.42,0.0003589,30]
[425778458,1781887986000,-575.14,0.0003589,30]
[425778460,1781887986000,-500.0,0.0003589,30]
[425778459,1781887986000,-500.0,0.0003589,30]
[425778461,1781887986000,-500.0,0.0003589,30]
[425778463,1781887986000,-721.82,0.0003589,30]
[425778462,1781887986000,-500.0,0.0003589,30]
[425778464,1781887986000,-500.0,0.0003589,30]
[425778473,1781887986000,-552.56,0.0003589,30]
[425778466,1781887986000,-500.0,0.0003589,30]
[425778468,1781887986000,-500.0,0.0003589,30]
[425778467,1781887986000,-1000.0,0.0003589,30]
[425778469,1781887986000,-332.41191461,0.0003589,30]
[425778471,1781887986000,-500.0,0.0003589,30]
[425778470,1781887986000,-1264.79,0.0003589,30]
[425778472,1781887986000,-1847.83,0.0003589,30]
[425778465,1781887986000,-500.0,0.0003589,30]
[425778478,1781887987000,-500.0,0.0003589,30]
[425778474,1781887987000,-500.0,0.0003589,30]
[425778475,1781887987000,-757.69,0.0003589,30]
[425778476,1781887987000,-1265.07,0.0003589,30]
[425778477,1781887987000,-500.0,0.0003589,30]
[425778479,1781887987000,-500.0,0.0003589,30]
[425778480,1781887987000,-693.9,0.0003589,30]
[425778481,1781887987000,-510.64,0.0003589,30]
[425778489,1781887987000,-500.0,0.0003589,30]
[425778483,1781887987000,-2137.39,0.0003589,30]
[425778484,1781887987000,-1423.78,0.0003589,30]
[425778485,1781887987000,-1172.01,0.0003589,30]
[425778487,1781887987000,-470.79548977,0.0003589,30]
[425778486,1781887987000,-500.0,0.0003589,30]
[425778488,1781887987000,-500.0,0.0003589,30]
[425778482,1781887987000,-506.28110593,0.0003589,30]
[425778490,1781887988000,-305.23897335,0.0003589,30]
[425778492,1781887988000,-1656.0,0.0003589,30]
[425778491,1781887988000,-1391.17,0.0003589,30]
[425778493,1781887988000,-721.41,0.0003589,30]
[425778494,1781887988000,-592.13,0.0003589,30]
[425778495,1781887988000,-857.32,0.0003589,30]
[425778496,1781887988000,-500.0,0.0003589,30]
[425778497,1781887988000,-500.0,0.0003589,30]
[425778499,1781887988000,-534.92,0.0003589,30]
[425778498,1781887988000,-500.0,0.0003589,30]
[425778500,1781887988000,-961.56,0.0003589,30]
[425778501,1781887988000,-500.0,0.0003589,30]
[425778502,1781887988000,-1123.62,0.0003589,30]
[425778503,1781887988000,-500.0,0.0003589,30]
[425778504,1781887988000,-3646.26,0.0003589,30]
[425778505,1781887988000,-500.0,0.0003589,30]
[425778507,1781887989000,-500.0,0.0003589,30]
[425778506,1781887989000,-500.0,0.0003589,30]
[425778508,1781887989000,-1427.66,0.0003589,30]
[425778509,1781887989000,-631.67,0.0003589,30]
[425778510,1781887989000,-711.69,0.0003589,30]
[425778511,1781887989000,-500.0,0.0003589,30]
[425778512,1781887989000,-500.0,0.0003589,30]
[425778513,1781887989000,-562.71,0.0003589,30]
[425778522,1781887989000,-536.10964836,0.000359,30]
[425778515,1781887989000,-711.87,0.0003589,30]
[425778517,1781887989000,-2018.92,0.000359,60]
[425778516,1781887989000,-2018.92,0.000359,60]
[425778519,1781887989000,-1062.3,0.000359,120]
[425778518,1781887989000,-461.14,0.000359,75]
[425778520,1781887989000,-1113.94,0.000359,75]
[425778521,1781887989000,-536.10964837,0.000359,30]
[425778514,1781887989000,-500.0,0.0003589,30]
[425778523,1781887990000,-536.10964836,0.000359,30]
[425778525,1781887990000,-1281.77636402,0.000359,30]
[425778530,1781887990000,-500.0,0.00035945,30]
[425778526,1781887990000,-1281.77636402,0.000359,30]
[425778528,1781887990000,-500.0,0.00035945,30]
[425778529,1781887990000,-505.56601336,0.00035945,30]
[425778524,1781887990000,-1281.77636404,0.000359,30]
[425778531,1781887990000,-500.0,0.00035945,30]
[425778532,1781887990000,-902.01,0.00035945,30]
[425778537,1781887990000,-577.1,0.00035945,30]
[425778538,1781887990000,-500.0,0.00035945,30]
[425778536,1781887990000,-625.28,0.00035945,30]
[425778527,1781887990000,-666.0,0.00035944,30]
[425778533,1781887990000,-500.0,0.00035945,30]
[425778534,1781887990000,-500.0,0.00035945,30]
[425778535,1781887990000,-500.0,0.00035945,30]
[425778540,1781887991000,-500.0,0.00035945,30]
[425778539,1781887991000,-500.0,0.00035945,30]
[425778542,1781887991000,-500.0,0.00035945,30]
[425778541,1781887991000,-1471.17,0.00035945,30]
[425778543,1781887991000,-661.85,0.00035945,30]
[425778545,1781887991000,-500.0,0.00035945,30]
[425778547,1781887991000,-999.39,0.00035945,30]
[425778544,1781887991000,-537.63,0.00035945,30]
[425778548,1781887991000,-500.0,0.00035945,30]
[425778549,1781887991000,-1241.89,0.00035945,30]
[425778550,1781887991000,-500.0,0.00035945,30]
[425778551,1781887991000,-500.0,0.00035945,30]
[425778553,1781887991000,-694.32,0.00035945,30]
[425778552,1781887991000,-1441.61,0.00035945,30]
[425778555,1781887991000,-1071.98,0.00035945,30]
[425778554,1781887991000,-500.0,0.00035945,30]
[425778546,1781887991000,-500.0,0.00035945,30]
[425778560,1781887992000,-1407.87,0.00035945,30]
[425778559,1781887992000,-500.0,0.00035945,30]
[425778566,1781887992000,-500.0,0.00035945,30]
[425778558,1781887992000,-500.0,0.00035945,30]
[425778556,1781887992000,-768.18,0.00035945,30]
[425778561,1781887992000,-500.0,0.00035945,30]
[425778557,1781887992000,-1111.1,0.00035945,30]
[425778562,1781887992000,-884.27,0.00035945,30]
[425778569,1781887992000,-500.0,0.00035945,30]
[425778564,1781887992000,-500.0,0.00035945,30]
[425778565,1781887992000,-1677.91,0.00035945,30]
[425778567,1781887992000,-500.0,0.00035945,30]
[425778568,1781887992000,-500.0,0.00035945,30]
[425778571,1781887992000,-636.34,0.00035945,30]
[425778570,1781887992000,-500.0,0.00035945,30]
[425778563,1781887992000,-802.05,0.00035945,30]
[425778572,1781887993000,-500.0,0.00035945,30]
[425778574,1781887993000,-500.0,0.00035945,30]
[425778573,1781887993000,-500.0,0.00035945,30]
[425778575,1781887993000,-563.16,0.00035945,30]
[425778576,1781887993000,-808.38,0.00035945,30]
[425778578,1781887993000,-500.0,0.00035945,30]
[425778579,1781887993000,-586.92,0.00035945,30]
[425778580,1781887993000,-793.97,0.00035945,30]
[425778581,1781887993000,-500.0,0.00035945,30]
[425778582,1781887993000,-517.68,0.00035945,30]
[425778583,1781887993000,-502.59,0.00035945,30]
[425778577,1781887993000,-500.0,0.00035945,30]
[425778588,1781887994000,-559.72,0.00035945,30]
[425778587,1781887994000,-1622.56,0.00035945,30]
[425778589,1781887994000,-500.0,0.00035945,30]
[425778584,1781887994000,-500.0,0.00035945,30]
[425778585,1781887994000,-588.77,0.00035945,30]
[425778590,1781887994000,-500.0,0.00035945,30]
[425778586,1781887994000,-500.0,0.00035945,30]
[425778592,1781887994000,-500.0,0.00035945,30]
[425778593,1781887994000,-500.0,0.00035945,30]
[425778594,1781887994000,-500.0,0.00035945,30]
[425778595,1781887994000,-500.0,0.00035945,30]
[425778596,1781887994000,-500.0,0.00035945,30]
[425778597,1781887994000,-500.0,0.00035945,30]
[425778591,1781887994000,-545.05,0.00035945,30]
[425778598,1781887995000,-500.0,0.00035945,30]
[425778599,1781887995000,-634.19535213,0.00035945,30]
[425778600,1781887995000,-631.31,0.00035945,30]
[425778602,1781887995000,-677.13,0.00035945,30]
[425778601,1781887995000,-563.83,0.00035945,30]
[425778603,1781887995000,-500.0,0.00035945,30]
[425778604,1781887995000,-719.45,0.00035945,30]
[425778605,1781887995000,-873.12,0.00035945,30]
[425778606,1781887995000,-786.02,0.00035945,30]
[425778607,1781887995000,-997.89,0.00035945,30]
[425778609,1781887995000,-579.64,0.00035945,30]
[425778608,1781887995000,-500.0,0.00035945,30]
[425778610,1781887995000,-1595.76,0.00035945,30]
[425778611,1781887995000,-500.0,0.00035945,30]
[425778612,1781887996000,-500.0,0.00035945,30]
[425778613,1781887996000,-500.0,0.00035945,30]
[425778615,1781887996000,-500.0,0.00035945,30]
[425778614,1781887996000,-544.21,0.00035945,30]
[425778616,1781887996000,-500.0,0.00035945,30]
[425778618,1781887996000,-500.0,0.00035945,30]
[425778617,1781887996000,-549.11,0.00035945,30]
[425778621,1781887996000,-500.0,0.00035945,30]
[425778620,1781887996000,-500.0,0.00035945,30]
[425778622,1781887996000,-500.0,0.00035945,30]
[425778624,1781887996000,-500.0,0.00035945,30]
[425778623,1781887996000,-500.0,0.00035945,30]
[425778625,1781887996000,-500.0,0.00035945,30]
[425778626,1781887996000,-742.76,0.00035945,30]
[425778619,1781887996000,-1173.72,0.00035945,30]
[425778635,1781887997000,-500.0,0.00035945,30]
[425778627,1781887997000,-530.48,0.00035945,30]
[425778628,1781887997000,-1217.88,0.00035945,30]
[425778629,1781887997000,-515.35,0.00035945,30]
[425778630,1781887997000,-779.91,0.00035945,30]
[425778632,1781887997000,-500.0,0.00035945,30]
[425778631,1781887997000,-511.18,0.00035945,30]
[425778633,1781887997000,-540.12,0.00035945,30]
[425778637,1781887997000,-2382.02,0.00035945,30]
[425778636,1781887997000,-500.0,0.00035945,30]
[425778638,1781887997000,-500.0,0.00035945,30]
[425778639,1781887997000,-1320.43,0.00035945,30]
[425778640,1781887997000,-514.74,0.00035945,30]
[425778641,1781887997000,-500.0,0.00035945,30]
[425778642,1781887997000,-500.0,0.00035945,30]
[425778634,1781887997000,-1153.53,0.00035945,30]
[425778647,1781887998000,-500.0,0.00035945,30]
[425778645,1781887998000,-500.0,0.00035945,30]
[425778646,1781887998000,-500.0,0.00035945,30]
[425778644,1781887998000,-1356.93,0.00035945,30]
[425778643,1781887998000,-981.85,0.00035945,30]
[425778648,1781887998000,-758.06,0.00035945,30]
[425778650,1781887998000,-1329.2,0.00035945,30]
[425778649,1781887998000,-769.14,0.00035945,30]
[425778652,1781887998000,-544.12,0.00035945,30]
[425778651,1781887998000,-500.0,0.00035945,30]
[425778653,1781887998000,-500.0,0.00035945,30]
[425778654,1781887998000,-641.52,0.00035945,30]
[425778656,1781887998000,-500.0,0.00035945,30]
[425778655,1781887998000,-527.41,0.00035945,30]
[425778657,1781887998000,-536.88,0.00035945,30]
[425778659,1781887999000,-508.71,0.00035945,30]
[425778658,1781887999000,-500.0,0.00035945,30]
[425778660,1781887999000,-500.0,0.00035945,30]
[425778661,1781887999000,-500.0,0.00035945,30]
[425778662,1781887999000,-500.0,0.00035945,30]
[425778664,1781887999000,-531.64,0.00035945,30]
[425778663,1781887999000,-500.0,0.00035945,30]
[425778665,1781887999000,-504.04613823,0.00035945,30]
[425778667,1781887999000,-938.69,0.00035945,30]
[425778666,1781887999000,-500.0,0.00035945,30]
[425778668,1781887999000,-578.3,0.00035945,30]
[425778670,1781887999000,-262.35,0.00035945,30]
[425778669,1781887999000,-500.0,0.00035945,30]
[425778671,1781887999000,-340.7,0.00035945,30]
[425778672,1781887999000,-500.0,0.00035945,30]
[425778673,1781888000000,-500.0,0.00035945,30]
[425778674,1781888000000,-500.0,0.00035945,30]
[425778675,1781888000000,-1259.59,0.00035945,30]
[425778676,1781888000000,-568.98,0.00035945,30]
[425778677,1781888000000,-500.0,0.00035945,30]
[425778678,1781888000000,-500.0,0.00035945,30]
[425778680,1781888000000,-1095.52,0.00035945,30]
[425778682,1781888000000,-576.54,0.00035945,30]
[425778681,1781888000000,-500.0,0.00035945,30]
[425778687,1781888000000,-567.37,0.00035945,30]
[425778684,1781888000000,-500.0,0.00035945,30]
[425778683,1781888000000,-500.0,0.00035945,30]
[425778685,1781888000000,-808.45,0.00035945,30]
[425778686,1781888000000,-500.0,0.00035945,30]
[425778679,1781888000000,-500.0,0.00035945,30]
[425778688,1781888001000,-500.0,0.00035945,30]
[425778689,1781888001000,-809.71,0.00035945,30]
[425778690,1781888001000,-879.94,0.00035945,30]
[425778691,1781888001000,-923.44,0.00035945,30]
[425778692,1781888001000,-500.0,0.00035945,30]
[425778693,1781888001000,-580.64,0.00035945,30]
[425778694,1781888001000,-500.0,0.00035945,30]
[425778697,1781888001000,-500.0,0.00035945,30]
[425778696,1781888001000,-500.0,0.00035945,120]
[425778698,1781888001000,-500.0,0.00035945,30]
[425778699,1781888001000,-500.0,0.00035945,30]
[425778700,1781888001000,-747.58,0.00035945,30]
[425778701,1781888001000,-569.82,0.00035945,30]
[425778702,1781888001000,-1017.11,0.00035945,30]
[425778695,1781888001000,-500.0,0.00035945,30]
[425778708,1781888002000,-500.0,0.00035945,30]
[425778706,1781888002000,-674.8,0.00035945,30]
[425778707,1781888002000,-500.0,0.00035945,30]
[425778705,1781888002000,-500.0,0.00035945,30]
[425778703,1781888002000,-500.0,0.00035945,30]
[425778704,1781888002000,-500.0,0.00035945,30]
[425778709,1781888002000,-151.66155533,0.00035945,30]
[425778717,1781888002000,-500.0,0.00035945,30]
[425778711,1781888002000,-500.0,0.00035945,30]
[425778712,1781888002000,-500.0,0.00035945,30]
[425778713,1781888002000,-417.76,0.00035945,30]
[425778714,1781888002000,-500.0,0.00035945,30]
[425778715,1781888002000,-599.46,0.00035945,30]
[425778716,1781888002000,-1060.51,0.00035945,30]
[425778710,1781888002000,-613.4,0.00035945,30]
[425778718,1781888003000,-500.0,0.00035945,30]
[425778720,1781888003000,-821.24,0.00035945,30]
[425778719,1781888003000,-588.74,0.00035945,30]
[425778721,1781888003000,-500.0,0.00035945,30]
[425778722,1781888003000,-725.68,0.00035945,30]
[425778723,1781888003000,-503.96794008,0.00035945,30]
[425778724,1781888003000,-500.0,0.00035945,30]
[425778726,1781888003000,-500.0,0.00035945,30]
[425778727,1781888003000,-1684.99,0.00035945,30]
[425778729,1781888003000,-500.0,0.00035945,30]
[425778728,1781888003000,-500.0,0.00035945,30]
[425778730,1781888003000,-517.19,0.00035945,30]
[425778731,1781888003000,-554.08,0.00035945,30]
[425778732,1781888003000,-500.0,0.00035945,30]
[425778725,1781888003000,-996.41,0.00035945,30]
[425778738,1781888004000,-500.0,0.00035945,30]
[425778733,1781888004000,-500.0,0.00035945,30]
[425778735,1781888004000,-500.0,0.00035945,30]
[425778734,1781888004000,-1338.57,0.00035945,30]
[425778736,1781888004000,-569.17,0.00035945,30]
[425778737,1781888004000,-500.0,0.00035945,30]
[425778739,1781888004000,-500.0,0.00035945,30]
[425778740,1781888004000,-500.0,0.00035945,30]
[425778741,1781888004000,-500.0,0.00035945,30]
[425778742,1781888004000,-662.39,0.00035945,30]
[425778744,1781888004000,-500.0,0.00035945,30]
[425778743,1781888004000,-500.0,0.00035945,30]
[425778745,1781888004000,-504.78616734,0.00035945,30]
[425778747,1781888004000,-500.0,0.00035945,30]
[425778746,1781888004000,-934.77,0.00035945,30]
[425778748,1781888005000,-1014.09,0.00035945,30]
[425778750,1781888005000,-833.48,0.00035945,30]
[425778749,1781888005000,-500.0,0.00035945,30]
[425778751,1781888005000,-1286.29,0.00035945,30]
[425778752,1781888005000,-507.51,0.00035945,30]
[425778753,1781888005000,-500.0,0.00035945,30]
[425778755,1781888005000,-500.0,0.00035945,30]
[425778754,1781888005000,-500.0,0.00035945,30]
[425778756,1781888005000,-500.0,0.00035945,30]
[425778758,1781888005000,-221.90782868,0.00035945,30]
[425778757,1781888005000,-500.0,0.00035945,30]
[425778759,1781888005000,-759.52,0.00035945,30]
[425778760,1781888005000,-627.51,0.00035945,30]
[425778761,1781888005000,-547.43,0.00035945,30]
[425778762,1781888005000,-500.0,0.00035945,30]
[425778764,1781888006000,-500.0,0.00035945,30]
[425778763,1781888006000,-548.15,0.00035945,30]
[425778765,1781888006000,-544.23,0.00035945,30]
[425778766,1781888006000,-547.88,0.00035945,30]
[425778767,1781888006000,-500.0,0.00035945,30]
[425778768,1781888006000,-230.00692428,0.00035945,30]
[425778776,1781888006000,-500.0,0.00035945,30]
[425778770,1781888006000,-500.0,0.00035945,30]
[425778771,1781888006000,-2045.07,0.00035945,30]
[425778772,1781888006000,-664.75,0.00035945,30]
[425778773,1781888006000,-537.97,0.00035945,30]
[425778774,1781888006000,-500.0,0.00035945,30]
[425778775,1781888006000,-317.51778595,0.00035945,30]
[425778769,1781888006000,-1348.31,0.00035945,30]
[425778778,1781888007000,-701.68,0.00035945,30]
[425778777,1781888007000,-500.0,0.00035945,30]
[425778779,1781888007000,-879.59,0.00035945,30]